bitfinex/quotes_SOLUSD_20220210
["timestamp","ask_amount","ask_price","bid_price","bid_amount"]
[1644491668980,43.70679712,113.67,113.6,41.4982]
[1644491669183,43.70679712,113.67,113.6,37.0992]
[1644491669383,54.16079712,113.67,113.6,37.0992]
[1644491669784,54.16079712,113.67,113.6,13.2054]
[1644491669987,54.16079712,113.67,113.57,12.74]
[1644491670183,5.62789712,113.66,113.56,61.1611]
[1644491670387,47.93733254,113.63,113.59,13.2068]
[1644491671586,61.14513254,113.63,113.58,13.2078]
[1644491673387,47.93733254,113.63,113.58,13.2078]
[1644491674690,61.14523254,113.63,113.58,13.2078]
[1644491676393,72.48523254,113.63,113.58,13.2078]
[1644491676997,72.48523254,113.63,113.57,13.2089]
[1644491677194,13.2111,113.61,113.54,36.2847]
[1644491678397,13.2111,113.61,113.55,13.2111]
[1644491678695,13.2111,113.61,113.55,37.2955]
[1644491681196,24.2614,113.62,113.55,37.2955]
[1644491681397,37.4709,113.62,113.55,37.2955]
[1644491686102,1.23545794,113.65,113.56,4.401]
[1644491686332,1.23545794,113.66,113.58,13.2064]
[1644491686603,0.024,113.66,113.59,17.14]
[1644491686801,0.9,113.7,113.65,1.23545794]
[1644491687003,0.9,113.7,113.66,12.74]
[1644491687206,1.23545794,113.74,113.67,17.5937]
[1644491687404,1.23545794,113.75,113.68,12.74]
[1644491687603,1.23545794,113.76,113.69,4.396]
[1644491687805,2.48228509,113.79,113.7,12.74]
[1644491688004,5.794e-05,113.79,113.71,4.394]
[1644491688202,5.794e-05,113.81,113.72,13.05199811]
[1644491688408,44.77180395,113.83,113.72,15.2649235]
[1644491688604,6.51002597,113.83,113.73,13.1881]
[1644491688804,5.794e-05,113.83,113.74,12.74]
[1644491689002,5.794e-05,113.84,113.74,24.76192539]
[1644491689204,5.794e-05,113.85,113.74,31.01192539]
[1644491689404,4.394,113.86,113.75,1.96292539]
[1644491689405,5.794e-05,113.86,113.75,1.96292539]
[1644491689602,5.794e-05,113.86,113.76,12.74]
[1644491689812,5.794e-05,113.86,113.76,32.1741]
[1644491690003,64.24657805,113.87,113.76,32.1741]
[1644491690204,4.393,113.86,113.76,25.9241]
[1644491690407,42.59694384,113.85,113.76,25.9241]
[1644491691204,45.94376657,113.83,113.76,25.9241]
[1644491692406,45.94376657,113.83,113.76,26.1741]
[1644491692602,45.94376657,113.83,113.76,30.5671]
[1644491692802,45.94376657,113.83,113.76,36.5671]
[1644491693206,45.94376657,113.83,113.76,30.5671]
[1644491693405,45.94376657,113.83,113.76,30.3171]
[1644491693709,45.94376657,113.83,113.76,17.133]
[1644491693905,4.393,113.82,113.76,17.133]
[1644491694105,4.393,113.82,113.76,4.393]
[1644491694106,48.29592238,113.81,113.76,4.393]
[1644491694506,4.394,113.8,113.73,12.74]
[1644491694705,44.66619257,113.79,113.72,12.74]
[1644491695109,44.66619257,113.79,113.72,25.9293]
[1644491695606,44.66619257,113.79,113.72,31.9293]
[1644491696006,44.66619257,113.79,113.72,25.9293]
[1644491696308,44.66619257,113.79,113.72,26.1793]
[1644491696707,44.66619257,113.79,113.72,25.9293]
[1644491697808,44.66619257,113.79,113.72,26.1793]
[1644491698308,44.66619257,113.79,113.72,32.1793]
[1644491698810,44.66619257,113.79,113.72,31.9293]
[1644491699008,44.66619257,113.79,113.72,25.9293]
[1644491699509,4.394,113.83,113.72,25.9293]
[1644491699907,6.62522154,113.83,113.72,25.9293]
[1644491700306,6.62522154,113.83,113.72,26.1793]
[1644491700509,37.13937098,113.82,113.72,26.1793]
[1644491700710,4.394,113.81,113.72,26.1793]
[1644491700909,36.35764031,113.8,113.72,26.1793]
[1644491702310,4.394,113.82,113.72,49.55011059]
[1644491702511,4.394,113.86,113.73,4.394]
[1644491702710,0.024,113.85,113.76,13.1831]
[1644491702911,4.393,113.84,113.77,12.74]
[1644491703309,44.68901144,113.84,113.77,12.74]
[1644491704711,44.68901144,113.84,113.77,25.9239]
[1644491705413,44.68901144,113.84,113.77,26.1739]
[1644491705612,44.68901144,113.84,113.77,25.9239]
[1644491709315,60.75616384,113.8,113.77,25.9239]
[1644491709515,60.75616384,113.8,113.78,5.56439994]
[1644491709718,0.5,113.79,113.77,13.1839]
[1644491709916,48.60778672,113.78,113.75,25.9258]
[1644491710120,48.60778672,113.78,113.71,4.394]
[1644491710323,38.57994891,113.76,113.65,4.395]
[1644491710520,38.57994891,113.76,113.65,12.74]
[1644491710521,4.397,113.75,113.65,12.74]
[1644491710720,36.52040479,113.74,113.65,12.74]
[1644491710923,36.42427551,113.72,113.67,13.1952]
[1644491714427,16.06650016,113.7,113.67,13.1952]
[1644491714626,0.5,113.69,113.67,13.1952]
[1644491714827,16.06650016,113.7,113.68,18.75879994]
[1644491715027,16.06650016,113.7,113.68,16.22659997]
[1644491715927,16.06650016,113.7,113.69,2.53219997]
[1644491717542,16.06650016,113.7,113.69,15.72589997]
[1644491720152,16.56650016,113.7,113.69,13.1937]
[1644491722447,16.56650016,113.7,113.67,25.9352]
[1644491722648,8.5319965,113.7,113.67,25.9352]
[1644491722849,0.5,113.7,113.67,25.9352]
[1644491723050,16.06650016,113.68,113.67,25.9352]
[1644491723450,16.56650016,113.68,113.67,25.9352]
[1644491726652,16.56650016,113.68,113.67,13.1952]
[1644491727754,16.06650016,113.68,113.67,18.75959994]
[1644491728156,16.06650016,113.68,113.67,31.49959994]
[1644491730757,16.06650016,113.68,113.67,37.49959994]
[1644491730961,16.06650016,113.68,113.67,31.49959994]
[1644491731159,16.06650016,113.68,113.67,37.49959994]
[1644491731363,16.06650016,113.68,113.67,31.49959994]
[1644491733565,0.00650016,113.68,113.67,33.45009986]
[1644491733764,0.00650016,113.68,113.67,44.09809986]
[1644491733963,0.024,113.74,113.67,44.09809986]
[1644491734166,4.422,113.76,113.7,13.1916]
[1644491734467,0.024,113.75,113.7,13.1916]
[1644491734763,4.398,113.76,113.7,13.1916]
[1644491736064,45.86506968,113.77,113.7,19.4416]
[1644491736265,45.84106968,113.77,113.7,13.1916]
[1644491737072,45.84106968,113.77,113.7,19.1916]
[1644491737467,0.024,113.78,113.7,34.13209992]
[1644491737667,0.024,113.79,113.73,13.1877]
[1644491737867,0.024,113.78,113.73,13.1877]
[1644491738067,0.024,113.8,113.73,13.1877]
[1644491738266,0.024,113.81,113.73,13.1877]
[1644491738467,37.16691859,113.82,113.73,13.1877]
[1644491738668,34.43618025,113.8,113.73,13.1877]
[1644491739968,4.394,113.79,113.73,13.1877]
[1644491740368,42.26053459,113.78,113.73,13.1877]
[1644491741373,4.418,113.8,113.73,13.1877]
[1644491741570,13.212,113.81,113.73,13.1877]
[1644491741778,0.024,113.81,113.73,17.5817]
[1644491741972,13.2107,113.82,113.73,30.3217]
[1644491742174,4.394,113.81,113.73,25.9277]
[1644491742371,42.17806179,113.8,113.73,31.9277]
[1644491742794,42.17806179,113.8,113.73,25.9277]
[1644491743296,42.17806179,113.8,113.73,31.9277]
[1644491743495,42.17806179,113.8,113.73,25.9277]
[1644491743798,4.394,113.81,113.73,31.9277]
[1644491743997,0.024,113.82,113.73,42.60819992]
[1644491744402,0.024,113.83,113.73,65.85929992]
[1644491744597,0.024,113.84,113.73,65.85929992]
[1644491744997,43.59857366,113.84,113.73,153.60929992]
[1644491745198,0.024,113.83,113.73,153.60929992]
[1644491746410,0.024,113.83,113.76,13.183]
[1644491746704,43.59857366,113.84,113.76,38.725]
[1644491747801,43.59857366,113.84,113.76,38.975]
[1644491748001,0.024,113.84,113.76,38.975]
[1644491748201,0.024,113.85,113.76,44.975]
[1644491749002,43.78098616,113.85,113.76,44.975]
[1644491749203,43.78098616,113.85,113.76,36.566]
[1644491749403,43.78098616,113.85,113.76,30.566]
[1644491749604,4.393,113.84,113.76,26.173]
[1644491749804,38.45103291,113.83,113.77,4.393]
[1644491750007,38.45103291,113.83,113.78,13.182]
[1644491752710,4.393,113.84,113.78,13.182]
[1644491752909,0.024,113.85,113.78,13.182]
[1644491753108,47.46,113.86,113.78,13.182]
[1644491753308,4.392,113.85,113.78,13.182]
[1644491753710,48.09502937,113.84,113.78,13.182]
[1644491757411,4.392,113.85,113.78,13.182]
[1644491757613,47.46,113.86,113.79,12.74]
[1644491757812,4.416,113.88,113.81,13.1798]
[1644491758011,4.415,113.89,113.81,13.1798]
[1644491758213,4.415,113.89,113.82,12.74]
[1644491758411,0.024,113.89,113.82,17.131]
[1644491758611,37.41460984,113.91,113.82,19.33149992]
[1644491758812,0.024,113.89,113.84,13.1762]
[1644491759010,37.41460984,113.91,113.84,13.1762]
[1644491759210,4.39,113.9,113.81,12.74]
[1644491759413,4.414,113.9,113.81,12.74]
[1644491759711,0.024,113.9,113.81,14.69049992]
[1644491759911,0.024,113.9,113.83,13.1791]
[1644491760113,49.7101,113.92,113.83,13.1791]
[1644491760313,0.024,113.91,113.83,13.1791]
[1644491760511,38.67404201,113.89,113.83,13.1791]
[1644491760710,51.85254201,113.89,113.83,13.1791]
[1644491760912,41.89836528,113.87,113.82,13.1802]
[1644491761117,41.89836528,113.87,113.79,4.39]
[1644491761317,36.50020712,113.85,113.79,4.39]
[1644491761517,36.50020712,113.85,113.76,4.392]
[1644491761719,0.024,113.84,113.76,4.392]
[1644491761915,36.52420712,113.85,113.76,4.392]
[1644491762114,36.52420712,113.85,113.75,36.2925]
[1644491762314,36.52420712,113.85,113.76,4.393]
[1644491762715,36.52420712,113.85,113.79,13.1831]
[1644491762917,36.50020712,113.85,113.79,13.1831]
[1644491763214,0.024,113.86,113.79,13.1831]
[1644491763414,4.392,113.85,113.79,13.1831]
[1644491763621,0.024,113.86,113.79,13.1831]
[1644491763818,4.416,113.87,113.79,13.1831]
[1644491764219,45.36362426,113.86,113.79,13.1831]
[1644491764417,58.54572426,113.86,113.79,13.1831]
[1644491766420,45.36362426,113.86,113.79,13.1831]
[1644491767720,58.54562426,113.86,113.79,13.1831]
[1644491768922,45.36362426,113.86,113.79,13.1831]
[1644491770625,49.75562426,113.86,113.79,13.1831]
[1644491770827,62.93742426,113.86,113.79,13.1831]
[1644491771225,74.7046458,113.86,113.76,4.392]
[1644491771427,87.4686458,113.86,113.75,27.9455]
[1644491771626,87.4686458,113.86,113.75,23.5525]
[1644491772424,74.7286458,113.86,113.75,23.5525]
[1644491772627,74.7286458,113.86,113.76,4.393]
[1644491772628,74.97965141,113.86,113.76,4.393]
[1644491772826,74.97965141,113.86,113.76,17.5784]
[1644491774027,74.97965141,113.86,113.76,13.1854]
[1644491774427,4.96203678,113.85,113.74,4.393]
[1644491774628,13.1882,113.82,113.74,4.393]
[1644491774828,51.53232018,113.81,113.74,4.393]
[1644491775030,4.394,113.81,113.74,4.393]
[1644491775227,0.024,113.82,113.74,4.393]
[1644491775442,0.024,113.83,113.74,17.5805]
[1644491775731,4.394,113.82,113.74,17.5805]
[1644491776130,36.06900363,113.81,113.74,17.5805]
[1644491776530,4.394,113.82,113.74,17.5805]
[1644491776736,17.5807,113.82,113.74,13.1875]
[1644491776938,4.394,113.82,113.74,13.1875]
[1644491777336,23.9109,113.83,113.74,17.5815]
[1644491777537,65.48037209,113.83,113.74,17.5815]
[1644491778337,65.48037209,113.83,113.74,17.8315]
[1644491778540,65.48037209,113.83,113.74,17.5815]
[1644491778738,78.66577209,113.83,113.74,17.5815]
[1644491779638,4.394,113.82,113.74,17.5815]
[1644491780342,36.3809525,113.81,113.74,17.8315]
[1644491780546,4.394,113.82,113.74,13.4375]
[1644491781545,46.98679062,113.81,113.74,13.4375]
[1644491782443,4.418,113.83,113.74,13.4375]
[1644491782743,0.024,113.83,113.77,13.184]
[1644491782943,13.2083,113.84,113.77,13.184]
[1644491783143,13.1843,113.84,113.75,29.0015]
[1644491783343,17.5788,113.83,113.75,24.6075]
[1644491783546,39.56756711,113.82,113.75,24.6075]
[1644491784765,39.56756711,113.82,113.76,13.1854]
[1644491786969,0.024,113.83,113.76,13.1854]
[1644491787169,0.024,113.84,113.76,15.39720528]
[1644491787371,23.8785,113.85,113.76,17.8284]
[1644491787569,23.8785,113.85,113.76,30.5684]
[1644491787777,23.8785,113.85,113.76,30.3184]
[1644491788070,52.01048087,113.84,113.76,30.3184]
[1644491788369,37.28429704,113.82,113.76,25.9254]
[1644491789669,37.28429704,113.82,113.76,26.1754]
[1644491790073,37.28429704,113.82,113.76,28.13720528]
[1644491791380,37.28429704,113.82,113.76,26.1754]
[1644491792581,37.28429704,113.82,113.76,28.14288398]
[1644491792780,37.28429704,113.82,113.76,32.53688398]
[1644491793683,37.28429704,113.82,113.76,30.5694]
[1644491794086,0.024,113.84,113.76,30.5694]
[1644491794285,4.394,113.84,113.76,26.1754]
[1644491794888,17.5779,113.84,113.76,25.9254]
[1644491795112,44.28693924,113.83,113.76,25.9254]
[1644491796087,4.393,113.82,113.76,25.9254]
[1644491796289,44.31093924,113.83,113.76,25.9254]
[1644491796486,48.67993924,113.83,113.76,25.9254]
[1644491796692,48.67993924,113.83,113.76,13.1854]
[1644491796891,50.91116078,113.83,113.75,37.7946]
[1644491797087,50.93516078,113.83,113.75,37.7946]
[1644491798787,64.12046078,113.83,113.75,37.7946]
[1644491799787,61.88923924,113.83,113.75,37.7946]
[1644491801790,69.05623924,113.83,113.74,13.1882]
[1644491801989,2.23122154,113.82,113.74,13.1882]
[1644491802289,44.65186988,113.79,113.73,24.9447]
[1644491802488,49.04586988,113.79,113.71,43.96]
[1644491802888,44.65186988,113.79,113.71,43.96]
[1644491803389,57.84136988,113.79,113.73,13.1891]
[1644491804088,13.1895,113.79,113.7,14.70748398]
[1644491804293,23.8796,113.82,113.71,4.394]
[1644491804488,4.394,113.81,113.72,36.9268]
[1644491805188,44.26165548,113.8,113.72,37.1768]
[1644491805789,44.26165548,113.8,113.72,36.9268]
[1644491806190,44.26165548,113.8,113.72,37.1768]
[1644491806595,44.26165548,113.8,113.72,36.9268]
[1644491806897,44.26165548,113.8,113.72,37.1768]
[1644491807194,44.26165548,113.8,113.72,36.9268]
[1644491807895,45.50174929,113.8,113.72,36.9268]
[1644491808195,45.50174929,113.8,113.73,12.74]
[1644491808396,45.50174929,113.8,113.74,13.1877]
[1644491810718,58.69004929,113.8,113.74,13.1877]
[1644491812519,45.50174929,113.8,113.74,13.1877]
[1644491812719,1.24009381,113.81,113.74,13.1877]
[1644491812920,5.63409381,113.8,113.73,13.1892]
[1644491813120,1.24009381,113.8,113.73,13.1892]
[1644491813322,4.394,113.79,113.73,13.1892]
[1644491813520,5.63409381,113.79,113.73,13.1892]
[1644491813720,38.06723265,113.78,113.73,13.1892]
[1644491815221,38.06723265,113.78,113.71,25.9308]
[1644491815421,38.06723265,113.78,113.7,12.74]
[1644491815622,4.394,113.77,113.69,4.394]
[1644491815821,13.1942,113.75,113.69,4.394]
[1644491816022,47.61875713,113.74,113.69,4.394]
[1644491816222,58.32375713,113.74,113.69,4.394]
[1644491817740,71.51935713,113.74,113.69,4.394]
[1644491817928,4.396,113.73,113.69,4.394]
[1644491818130,38.23509806,113.72,113.69,4.394]
[1644491818329,0.5,113.71,113.69,4.394]
[1644491818529,35.84490222,113.7,113.69,4.394]
[1644491820330,35.84490222,113.7,113.66,23.0259]
[1644491820531,35.84490222,113.7,113.64,39.38078398]
[1644491820729,35.84490222,113.7,113.64,39.60678398]
[1644491820929,35.84490222,113.7,113.64,37.6393]
[1644491821634,35.84490222,113.7,113.64,37.3893]
[1644491821834,43.10790222,113.7,113.64,24.6493]
[1644491822834,56.30800222,113.7,113.64,24.6493]
[1644491824234,49.04500222,113.7,113.64,24.6493]
[1644491827442,13.1977,113.73,113.64,44.21358398]
[1644491827650,13.59320254,113.77,113.66,159.27]
[1644491827847,1.24009381,113.78,113.67,104.886]
[1644491828043,1.24009381,113.78,113.68,159.27]
[1644491828244,1.24009381,113.82,113.69,17.136]
[1644491828444,46.66644752,113.81,113.69,64.2344]
[1644491828645,59.85414752,113.81,113.72,13.1873]
[1644491828867,44.19288849,113.79,113.71,12.74]
[1644491829068,43.2294063,113.77,113.71,12.74]
[1644491829268,43.2294063,113.77,113.69,59.8384]
[1644491829468,43.2294063,113.77,113.69,60.0884]
[1644491829667,43.2294063,113.77,113.71,15.15898398]
[1644491829875,13.1921,113.78,113.71,21.15898398]
[1644491830075,4.394,113.79,113.71,41.31798398]
[1644491830272,22.7194,113.8,113.71,41.31798398]
[1644491830870,35.52345525,113.79,113.71,41.31798398]
[1644491832270,39.91745525,113.79,113.71,39.3505]
[1644491833169,39.91745525,113.79,113.71,31.9315]
[1644491836571,35.52345525,113.79,113.71,31.9315]
[1644491836871,35.52345525,113.79,113.71,32.1815]
[1644491837272,35.52345525,113.79,113.71,31.9315]
[1644491837671,35.52345525,113.79,113.71,32.1815]
[1644491837872,39.91745525,113.79,113.71,32.1815]
[1644491838974,35.52345525,113.79,113.71,32.1815]
[1644491839576,35.52345525,113.79,113.71,31.9315]
[1644491839875,48.71355525,113.79,113.71,19.1915]
[1644491840075,53.10755525,113.79,113.71,19.1915]
[1644491840274,53.10755525,113.79,113.71,13.1915]
[1644491842876,48.71355525,113.79,113.71,25.9315]
[1644491843075,38.75494619,113.77,113.71,13.1915]
[1644491844878,51.94734619,113.77,113.69,60.2918]
[1644491845080,4.396,113.76,113.69,60.2918]
[1644491845278,45.22079223,113.75,113.69,60.2918]
[1644491846281,58.41549223,113.75,113.69,47.0984]
[1644491846481,58.41549223,113.75,113.68,13.1953]
[1644491847484,45.22079223,113.75,113.68,13.1953]
[1644491847683,24.2321,113.77,113.68,15.16274448]
[1644491847883,24.2321,113.77,113.69,17.136]
[1644491848083,24.2321,113.77,113.71,13.1912]
[1644491848284,4.396,113.79,113.71,13.1912]
[1644491848487,23.3811,113.8,113.71,17.5852]
[1644491848683,35.54759081,113.79,113.71,17.5852]
[1644491848886,39.94159081,113.79,113.71,13.1912]
[1644491849884,13.1913,113.78,113.71,13.1912]
[1644491850085,47.28139822,113.77,113.71,13.1912]
[1644491851088,47.28139822,113.77,113.71,15.15864448]
[1644491851485,47.28139822,113.77,113.71,13.1912]
[1644491851986,13.1913,113.78,113.71,13.1912]
[1644491852186,50.4178,113.8,113.71,13.1912]
[1644491852386,46.0238,113.8,113.72,6.36144448]
[1644491852586,46.0238,113.8,113.73,13.1887]
[1644491852786,50.4178,113.8,113.73,13.1887]
[1644491852986,47.56892927,113.79,113.73,13.1887]
[1644491853787,60.75882927,113.79,113.73,13.1887]
[1644491853989,60.75882927,113.79,113.72,36.2031]
[1644491854890,60.75882927,113.79,113.72,23.0124]
[1644491855091,61.99892308,113.79,113.7,24.9188]
[1644491855291,4.394,113.78,113.7,24.9188]
[1644491855492,13.1938,113.76,113.7,24.9188]
[1644491855692,38.31500162,113.75,113.7,24.9188]
[1644491855893,38.31500162,113.75,113.69,23.5507]
[1644491856096,38.31500162,113.75,113.69,36.745]
[1644491856291,38.31500162,113.75,113.68,12.764]
[1644491856292,37.07547573,113.73,113.68,0.024]
[1644491856495,37.07547573,113.73,113.66,22.5467]
[1644491857695,50.27257573,113.73,113.67,13.1967]
[1644491857895,37.8846285,113.71,113.67,13.1967]
[1644491858299,37.8846285,113.71,113.68,8.74579649]
[1644491858602,0.5,113.7,113.68,8.74579649]
[1644491859299,41.24182488,113.69,113.68,8.74579649]
[1644491859503,52.00282488,113.69,113.68,8.74579649]
[1644491859899,52.00282488,113.69,113.63,0.024]
[1644491860100,52.00282488,113.69,113.61,23.6017]
[1644491860500,65.20442488,113.69,113.62,13.2025]
[1644491860700,65.20442488,113.69,113.62,0.024]
[1644491860901,65.20442488,113.69,113.61,23.6017]
[1644491861702,65.20442488,113.69,113.61,36.8051]
[1644491864506,65.20442488,113.69,113.61,37.0551]
[1644491865507,65.20442488,113.69,113.61,36.8051]
[1644491867913,46.02495431,113.67,113.61,36.8051]
[1644491868316,46.02495431,113.67,113.61,13.2274]
[1644491868515,46.02495431,113.67,113.61,0.024]
[1644491868716,46.02495431,113.67,113.6,13.2045]
[1644491869717,59.22915431,113.67,113.6,13.2045]
[1644491870130,59.22915431,113.67,113.59,37.6087]
[1644491870335,40.43728757,113.65,113.59,0.024]
[1644491870536,40.43728757,113.65,113.6,0.024]
[1644491870537,50.00028757,113.65,113.6,0.024]
[1644491870736,50.00028757,113.65,113.58,23.774]
[1644491871740,53.64478757,113.65,113.58,23.774]
[1644491872838,53.64478757,113.65,113.58,0.024]
[1644491873039,4.4,113.64,113.58,0.024]
[1644491873238,54.74866426,113.63,113.56,0.024]
[1644491873438,54.74866426,113.63,113.55,66.7082]
[1644491875238,54.74866426,113.63,113.55,66.9582]
[1644491878640,41.53906426,113.63,113.55,68.92564448]
[1644491879843,41.53906426,113.63,113.55,68.67564448]
[1644491880241,41.53906426,113.63,113.55,68.92564448]
[1644491880643,41.53906426,113.63,113.55,73.32664448]
[1644491881545,41.53906426,113.63,113.55,73.07664448]
[1644491881743,41.53906426,113.63,113.55,68.67564448]
[1644491882143,41.53906426,113.63,113.55,62.67564448]
[1644491882348,41.53906426,113.63,113.55,62.92564448]
[1644491882545,41.53906426,113.63,113.55,68.92564448]
[1644491883146,41.53906426,113.63,113.55,68.67564448]
[1644491884744,41.53906426,113.63,113.55,62.67564448]
[1644491885147,41.53906426,113.63,113.55,68.67564448]
[1644491886050,41.53906426,113.63,113.55,68.92564448]
[1644491886251,41.53906426,113.63,113.56,12.74]
[1644491886453,41.53906426,113.63,113.58,13.2061]
[1644491886954,37.0343,113.65,113.58,13.2061]
[1644491887154,37.0343,113.65,113.58,13.2301]
[1644491887355,23.8279,113.65,113.59,1.96723826]
[1644491887554,23.8279,113.65,113.59,15.17253826]
[1644491887753,4.401,113.67,113.59,15.42253826]
[1644491887956,34.19986175,113.68,113.59,19.84653826]
[1644491888154,34.19986175,113.68,113.6,25.06353826]
[1644491888556,34.19986175,113.68,113.6,0.024]
[1644491888959,42.85284095,113.66,113.58,0.024]
[1644491889160,42.98409742,113.64,113.58,0.024]
[1644491889359,50.56209742,113.64,113.56,41.8363]
[1644491889660,63.76949742,113.64,113.56,35.8363]
[1644491890463,4.401,113.63,113.56,35.8363]
[1644491890661,47.08174901,113.62,113.56,23.0963]
[1644491890863,47.08174901,113.62,113.56,23.0723]
[1644491891863,60.29134901,113.62,113.56,36.2816]
[1644491892464,13.2096,113.62,113.56,36.2816]
[1644491892664,67.976,113.66,113.56,38.49883826]
[1644491892864,13.2061,113.65,113.56,51.01283826]
[1644491893065,13.2061,113.65,113.57,0.024]
[1644491893263,13.2061,113.65,113.58,13.2065]
[1644491893465,13.2061,113.65,113.58,13.2305]
[1644491893665,46.45527067,113.64,113.58,13.2305]
[1644491894263,46.45527067,113.64,113.58,15.19773826]
[1644491894664,46.45527067,113.64,113.58,13.2305]
[1644491895069,59.66267067,113.64,113.58,13.2305]
[1644491895667,46.45527067,113.64,113.58,13.2305]
[1644491896167,46.45527067,113.64,113.58,15.19773826]
[1644491896388,46.45527067,113.64,113.58,15.44773826]
[1644491897494,46.45527067,113.64,113.58,13.2305]
[1644491897888,46.45527067,113.64,113.58,0.024]
[1644491898089,46.45527067,113.64,113.57,13.2082]
[1644491898393,42.19759718,113.62,113.57,13.2082]
[1644491898589,42.19759718,113.62,113.57,13.2322]
[1644491899992,13.2075,113.64,113.57,13.2322]
[1644491900190,4.401,113.65,113.57,13.2322]
[1644491900391,25.18689381,113.66,113.58,12.74]
[1644491900592,23.9468,113.66,113.59,13.2053]
[1644491900792,4.4,113.65,113.59,13.2293]
[1644491900989,59.19841816,113.64,113.58,0.024]
[1644491901191,59.19841816,113.64,113.56,68.36985211]
[1644491901793,45.99071816,113.64,113.58,13.2074]
[1644491903793,59.19771816,113.64,113.58,13.2074]
[1644491905099,59.19771816,113.64,113.57,0.024]
[1644491905100,59.19771816,113.64,113.57,13.2325]
[1644491905296,4.401,113.63,113.57,13.2325]
[1644491905498,56.2676635,113.62,113.57,0.024]
[1644491905696,56.2676635,113.62,113.56,23.0723]
[1644491906497,56.2676635,113.62,113.55,22.8772]
[1644491906697,45.43730314,113.6,113.55,22.8772]
[1644491906898,56.48230314,113.6,113.53,5.67895211]
[1644491907097,56.48230314,113.6,113.53,4.425]
[1644491908702,56.48230314,113.6,113.54,13.2116]
[1644491910405,69.69410314,113.6,113.54,13.2116]
[1644491912205,69.69410314,113.6,113.53,13.2365]
[1644491912406,69.69410314,113.6,113.53,13.2125]
[1644491912605,69.69410314,113.6,113.53,0.024]
[1644491912809,69.69410314,113.6,113.52,25.17143826]
[1644491913706,69.69410314,113.6,113.52,38.38523826]
[1644491913905,58.64910314,113.6,113.52,38.38523826]
[1644491914106,58.64910314,113.6,113.52,42.78723826]
[1644491914307,58.64910314,113.6,113.52,43.03723826]
[1644491914508,58.64910314,113.6,113.52,44.04119037]
[1644491914708,58.64910314,113.6,113.52,42.78723826]
[1644491917316,58.64910314,113.6,113.52,40.82]
[1644491917716,4.402,113.59,113.52,40.82]
[1644491917920,35.61661756,113.58,113.52,40.82]
[1644491919319,35.61661756,113.58,113.52,36.418]
[1644491919819,59.43671756,113.58,113.52,36.418]
[1644491922122,46.22261756,113.58,113.52,36.418]
[1644491923249,35.61661756,113.58,113.52,36.418]
[1644491924848,48.83051756,113.58,113.52,36.418]
[1644491925949,13.2129,113.59,113.52,36.418]
[1644491926151,24.3946,113.6,113.52,38.38523826]
[1644491926354,24.3946,113.6,113.53,12.74]
[1644491926559,24.3946,113.6,113.55,13.2107]
[1644491926851,48.4421,113.63,113.55,13.2107]
[1644491927053,42.84559644,113.62,113.55,13.2347]
[1644491927556,56.05499644,113.62,113.55,13.2347]
[1644491927953,42.84559644,113.62,113.55,13.2347]
[1644491928954,56.05499644,113.62,113.55,13.2347]
[1644491939171,40.34468756,113.59,113.55,13.2347]
[1644491939371,40.34468756,113.59,113.56,0.024]
[1644491939571,40.34468756,113.59,113.55,13.2107]
[1644491939771,40.34468756,113.59,113.57,3.03219997]
[1644491939972,0.5,113.58,113.55,13.2107]
[1644491940572,40.34468756,113.59,113.55,13.2107]
[1644491941174,19.052,113.6,113.55,13.2107]
[1644491941407,5.8407,113.6,113.55,13.2107]
[1644491941601,5.8407,113.6,113.57,13.2064]
[1644491941799,5.8407,113.6,113.58,5.56439994]
[1644491941999,5.8407,113.6,113.58,7.5316382]
[1644491942398,5.8407,113.6,113.58,5.56439994]
[1644491942801,5.8407,113.6,113.59,13.2059]